Cogmind - Beta 13 @@@ ROGUE MODE // 2024.04.15 @ 23:15:31 Player: Jason Result: Destroyed by Z0-64O(R) with Subdweller Laser Performance ------------- Evolutions (0) 0 Regions Visited (2) 400 Robots Destroyed (24) 120 Value Destroyed (490) 490 Prototype IDs (0) 0 Alien Tech Used (0) 0 Bonus (0) 0 TOTAL SCORE: 1010 Bonus ------- None Cogmind --------- Core Integrity 0/250 Matter 290/300 Energy 249/250 System Corruption 0% Temperature Cool (6) Movement Rolling (125) Ox3 Location -10/Subcaves Parts ------- > --- POWER (1) -------- Ion Engine > --- PROPULSION (2) --- Wheel > --- UTILITY (2) ------ Large Storage Unit Structural Scanner > --- WEAPON (2) ------- Beam Rifle Subdweller Shrapnel Launcher > --- INVENTORY (15) --- Ion Engine Light Ion Engine Aluminum Leg Aluminum Leg Small Storage Unit Large Matter Pod (150) ECM Suite Medium Laser Assault Rifle Assault Rifle Light Cannon Peak State ------------ > --- POWER ------------ Ion Engine > --- PROPULSION ------- Wheel Wheel > --- UTILITY ---------- Large Storage Unit Improved Terrain Scanner > --- WEAPON ----------- Beam Rifle Assault Rifle > --- INVENTORY -------- Ion Engine Light Ion Engine Aluminum Leg Aluminum Leg Wheel Wheel Small Storage Unit Large Matter Pod ECM Suite Medium Laser Small Laser Light Assault Rifle Light Cannon [Rating: 11] Favorites ----------- Power Ion Engine Engine Ion Engine Propulsion Wheel Wheel Wheel Utility Large Storage Unit Device Structural Scanner Storage Large Storage Unit Weapon Beam Rifle Energy Gun Beam Rifle Ballistic Gun Assault Rifle Ballistic Cannon Light Cannon Launcher Subdweller Shrapnel Launcher Build | -11 -10 -10 ------- Run | Yrd Mat Sub Slots Evolved . | . . . Power . | . . . Propulsion . | . . . Utility . | . . . Weapon . | . . . Parts Attached 30 | 6 19 5 Power 5 | 1 3 1 Engine 5 | 1 3 1 Core . | . . . Reactor . | . . . Propulsion 7 | 2 3 2 Treads . | . . . Leg . | . . . Wheel 7 | 2 3 2 Hover . | . . . Flight . | . . . Utility 6 | 1 5 . Device 3 | . 3 . Storage 3 | 1 2 . Processor . | . . . Hackware . | . . . Protection . | . . . Artifact . | . . . Weapon 12 | 2 8 2 Energy Gun 4 | 2 2 . Energy Cannon . | . . . Ballistic Gun 6 | . 5 1 Ballistic Cannon 1 | . 1 . Launcher 1 | . . 1 Special Weapon . | . . . Impact Weapon . | . . . Slashing Weapon . | . . . Piercing Weapon . | . . . Special Melee Weapon . | . . . Unidentified Prototypes . | . . . Parts Lost 7 | . 2 5 Power 1 | . . 1 Propulsion 3 | . . 3 Utility 1 | . 1 . Weapon 2 | . 1 1 Highest Loss Streak 5 | . 1 5 To Critical Strikes . | . . . Average Slot Usage (%) 94 | . 96 92 Engine 13 | . 13 14 Wheel 25 | . 28 21 Device 11 | . 9 14 Storage 14 | . 14 14 Energy Gun 15 | . 15 14 Ballistic Gun 11 | . 12 10 Launcher 1 | . . 3 Naked Turns . | . . . Heaviest Build 37 | 14 32 37 Greatest Support 20 | 20 20 20 Greatest Overweight (x) 3 | 3 1 3 Average Overweight (x) 1 | . . 1 Largest Inventory Capacity 15 | 8 15 15 Average Capacity 14 | 7 14 15 Most Carried 14 | 5 14 14 Average Carried 10 | 2 10 12 Final Capacity 15 | 8 15 15 Final Carried 14 | 4 14 11 Class Distribution -------------------- 69% | Mutant 30% | Scavenger-Mutant Dominant Class ---------------- Mutant | -10/Materials Scavenger-Mutant | -10/Subcaves Resources | -11 -10 -10 ----------- Run | Yrd Mat Sub Matter Collected 647 | 260 283 104 Remotely . | . . . Salvage Created 701 | 23 501 177 Parts 45 | 2 29 14 Haulers Intercepted 1 | . 1 . Recyclers Shooed . | . . . Parts Field Recycled . | . . . Retrieved Matter . | . . . Parts Self-Destructed 3 | . . 3 Prevented . | . . . Kills | -11 -10 -10 ------- Run | Yrd Mat Sub Combat Hostiles Destroyed 16 | . 12 4 Guns 14 | . 10 4 AOE 2 | . 2 . Classes Destroyed 7 | 1 5 1 Builder 4 | . 4 . Tunneler 2 | 1 1 . Hauler 1 | . 1 . Watcher 1 | . 1 . Swarmer 6 | . 6 . Grunt 8 | . 6 2 Subdweller 2 | . . 2 Best Kill Streak 8 | 1 8 2 Combat Bots Only 5 | . 5 2 Max Kills in Single Turn 3 | 1 3 1 Gunslinging . | . . . Exploded 2 | . 2 . Melee . | . . . Uniques/NPCs Destroyed . | . . . Combat | -11 -10 -10 -------- Run | Yrd Mat Sub Hostile Shots Fired 105 | . 69 36 Missed 36 | . 21 15 Damage Taken 988 | . 520 468 Core 262 | . 138 124 Absorbed by Shields . | . . . Core Remaining (%) 100 | 100 . . Volleys Fired 70 | 1 48 21 Largest 2 | 2 2 2 Hottest 90 | 90 90 76 Shots Fired 139 | 2 95 42 Gun 139 | 2 95 42 Cannon . | . . . Launcher . | . . . Special . | . . . Kinetic 59 | . 38 21 Thermal 70 | 1 48 21 Explosive . | . . . Electromagnetic 10 | 1 9 . Robot Hit Streak 14 | 2 10 14 Robot Miss Streak 4 | . 4 3 Penetration Max . | . . . Secondary Targets 1 | . 1 . Max Gunslinging Chain 1 | . 1 . Shots Hit Robots 79 | 2 52 25 Core Hits 35 | 1 26 8 Critical Kills . | . . . Critical Parts Destroyed 2 | . 1 1 Critical Strikes 8 | . 5 3 Burn 6 | . 4 2 Destroy 2 | . 1 1 Melee Attacks . | . . . Impact . | . . . Slashing . | . . . Piercing . | . . . Sneak Attacks . | . . . Combat Hostiles . | . . . Follow-up Attacks . | . . . Damage Inflicted 1243 | 24 851 368 Guns 1053 | 24 661 368 Cannons . | . . . Explosions 190 | . 190 . Melee . | . . . Ramming . | . . . Kinetic 357 | . 194 163 Thermal 813 | 12 596 205 Explosive . | . . . Electromagnetic 73 | 12 61 . Impact . | . . . Slashing . | . . . Piercing . | . . . Highest Corruption . | . . . Average Corruption . | . . . Corruption Purged . | . . . Corruption Blocked . | . . . Overload Shots . | . . . Overflow Damage . | . . . Projectiles . | . . . Explosions . | . . . Melee . | . . . Knockbacks . | . . . Impact . | . . . Kinetic . | . . . Secondary . | . . . Self-Inflicted Damage 38 | . 38 . Shots 1 | . 1 . Rammed . | . . . Targets Rammed . | . . . Kicked . | . . . Crushed . | . . . Highest Temperature 195 | 30 195 . Average Temperature 53 | 17 54 . Received Heat Transfer 309 | . 177 132 Siege Activations . | . . . Robots Corrupted . | . . . Combat Hostiles . | . . . Parts Fried . | . . . Impact Corruptions . | . . . Robots Melted . | . . . Combat Hostiles . | . . . Parts Melted 3 | . 3 . Heat Transferred 2409 | 37 1706 666 Parts Sabotaged . | . . . Parts Stolen . | . . . Parts Stripped . | . . . Power Chain Reactions 3 | . 3 . Alert | -11 -10 -10 ------- Run | Yrd Mat Sub Peak Influence 312 | 5 312 . Initial 3 | . 3 . Average 143 | . 156 . Maximum Alert Level 1 | . 1 . Low Security (%) 82 | 100 81 . Level 1 17 | . 18 . Level 2 . | . . . Level 3 . | . . . Level 4 . | . . . Level 5 . | . . . High Security . | . . . Max Security . | . . . Squads Dispatched 3 | . 3 . Investigation 2 | . 2 . Extermination . | . . . Reinforcement 1 | . 1 . Assault . | . . . Garrison . | . . . Intercept . | . . . Searches Triggered . | . . . Construction Impeded . | . . . Haulers Reinforced . | . . . Active Scanning Responses . | . . . Cargo Convoy Interrupts . | . . . Stealth | -11 -10 -10 --------- Run | Yrd Mat Sub Distress Signals . | . . . Communications Jammed . | . . . Distress Signals . | . . . Times Spotted 22 | . 17 5 Peak Tracking Total 6 | . 6 2 Tactical Retreats . | . . . Traps | -11 -10 -10 ------- Run | Yrd Mat Sub Traps Triggered 6 | . 4 2 Indirectly . | . . . Trap Hack Attempts . | . . . Triggered . | . . . Disarmed . | . . . Reprogrammed 4 | . 4 . Reused . | . . . Traps Extracted . | . . . Installed . | . . . Triggered . | . . . Machines | -11 -10 -10 ---------- Run | Yrd Mat Sub Machines Disabled . | . . . Max in Single Turn . | . . . Machines Repaired . | . . . Machines Dismantled . | . . . Machines Sabotaged . | . . . Overloaded Fab Kills . | . . . Hacking | -11 -10 -10 --------- Run | Yrd Mat Sub Machines Accessed 5 | . 4 1 Terminals 3 | . 3 . Fabricators . | . . . Repair Stations . | . . . Recycling Units 1 | . 1 . Scanalyzers . | . . . Garrison Access . | . . . Total Hacks 16 | . 14 2 Successful 10 | . 8 2 Failed 6 | . 6 . Catastrophic 2 | . 2 . Database Lockouts . | . . . Manual 1 | . . 1 Terminals 11 | . 11 . Fabricators . | . . . Repair Stations . | . . . Recycling Units 3 | . 3 . Scanalyzers . | . . . Garrison Access . | . . . Terminal Hacks 7 | . 5 2 Record 2 | . . 2 Alert Level 1 | . 1 . Locate Traps 1 | . 1 . Reprogram Traps 1 | . 1 . Dispatch Records 1 | . 1 . Security Status 1 | . 1 . Fabricator Hacks . | . . . Repair Station Hacks . | . . . Recycling Unit Hacks 3 | . 3 . Process 1 | . 1 . Report Inventory 1 | . 1 . Retrieve Matter 1 | . 1 . Scanalyzer . | . . . Garrison Access Hacks . | . . . Unauthorized Hacks . | . . . Terminals . | . . . Fabricators . | . . . Repair Stations . | . . . Recycling Units . | . . . Scanalyzers . | . . . Garrison Access . | . . . Data Cores Recovered . | . . . Used . | . . . Hacking Detections 3 | . 3 . Full Trace Events 2 | . 2 . Feedback Events . | . . . Feedback Blocked . | . . . Robot Schematics Acquired . | . . . Robots Built . | . . . Authchips . | . . . Time . | . . . Total Robot Build Rating . | . . . Part Schematics Acquired . | . . . Parts Built . | . . . Authchips . | . . . Time . | . . . Total Part Build Rating . | . . . Parts Repaired . | . . . Time . | . . . Parts Recycled . | . . . Recycled Matter 197 | . 197 . Retrieved Matter 259 | . 259 . Retrieved Components . | . . . Parts Scanalyzed . | . . . Part Schematics Acquired . | . . . Parts Damaged . | . . . Bothacking | -11 -10 -10 ------------ Run | Yrd Mat Sub Used RIF Installer . | . . . Robots Hacked . | . . . Non-combat . | . . . Combat . | . . . Robot Hacks Applied . | . . . Relay Couplers Released . | . . . Fabnet Peak Effective % . | . . . Robots Rewired . | . . . Allies Hacked . | . . . Hacks Repelled . | . . . Allies | -11 -10 -10 -------- Run | Yrd Mat Sub Total Allies . | . . . Largest Group . | . . . Highest-Rated Group . | . . . Highest-Rated Ally . | . . . Total Orders . | . . . Ally Attacks . | . . . Total Damage . | . . . Kills . | . . . Allies Corrupted . | . . . Allies Melted . | . . . Intel | -11 -10 -10 ------- Run | Yrd Mat Sub Robot Analysis Total . | . . . Derelict Logs Recovered 2 | . . 2 Drone Launches . | . . . Drone Recoveries . | . . . Exploration | -11 -10 -10 ------------- Run | Yrd Mat Sub Turns Passed 1416 | 68 786 562 Spaces Moved 1081 | 57 577 447 Core 6 | 6 . . Treads . | . . . Legs . | . . . Wheels 1075 | 51 577 447 Hover . | . . . Flight . | . . . Fastest Speed 50 | 50 80 95 Average Speed 99 | 88 93 109 Slowest Speed 200 | 200 95 125 Overloaded Moves . | . . . Propulsion Burnouts . | . . . Robots Hopped . | . . . Cave-ins Triggered . | . . . Exploration Rate (%) 34 | 4 66 32 Regions Visited 2 Branch Regions 1 Pre-discovered Areas 1 | . . 1 Known Exits Taken . | . . . Unknown Exits Taken 2 | 1 1 . Scrap Searched 1 | . . 1 Spaces Dug . | . . . Terrain Destroyed 7 | . 7 . Melee . | . . . Projectile . | . . . AOE 7 | . 7 . Terrain Rammed . | . . . Walls Destroyed . | . . . Machines Disabled . | . . . Actions | -11 -10 -10 --------- Run | Yrd Mat Sub Total 1269 | 70 723 476 Wait 68 | . 66 2 Move 1079 | 56 576 447 Hop . | . . . Pick Up 16 | 6 9 1 Fast Attach 9 | 5 4 . Attach 8 | 1 3 4 Detach . | . . . Swap 13 | . 12 1 Drop 6 | 1 5 . Fire 70 | 1 48 21 Melee . | . . . Ram . | . . . Kick . | . . . Crush . | . . . Escape Stasis . | . . . Rewire . | . . . Trap . | . . . Miscellaneous . | . . . Route ------- -11/Scrapyard -10/Materials (discovered 6 exits: [*Mat x3] / [*Min x2] / *Sub) -10/Subcaves History --------- Turn | Location | Event 20 | -11/Scrapyard | Discovered new exit (range 15) 69 | -11/Scrapyard | Entered Materials 105 | -10/Materials | Discovered new exit (range 16) 217 | -10/Materials | Discovered new exit (range 15) 308 | -10/Materials | Build established: Mutant 319 | -10/Materials | Discovered new exit (range 8) 349 | -10/Materials | Discovered new exit (range 15) 503 | -10/Materials | Discovered new exit (range 16) 537 | -10/Materials | Core integrity fell below 50% 703 | -10/Materials | Discovered new exit (range 4) 855 | -10/Materials | Entered Subcaves 1003 | -10/Subcaves | Learned location of 1 exit from Materials 1008 | -10/Subcaves | Build established: Scavenger-Mutant 1136 | -10/Subcaves | Core integrity fell below 20% 1172 | -10/Subcaves | Lost 5 parts (1p3n1w) 1235 | -10/Subcaves | A swath of the cavern ceiling suddenly collapsed 1317 | -10/Subcaves | Visited Clippyterm 1417 | -10/Subcaves | Destroyed by Z0-64O(R) with Subdweller Laser Last Messages --------------- 01274_ Acquired Sub. Shrapnel Launcher. 01312_ A thin wall crumbles away, revealing a door. 01317_ The door opens automatically. 01321_ Connecting with Clippyterm... 01321_ Current location identified: Subcaves >>Record! "Clippyterm" Welcome to Clippyterm v0.53, my misguided attempt to resurrect an ancient AI. I give up. There must be something fundamentally wrong with the algorithm, because no matter how much data I collect to feed it, half the time it still manages to suggest unhelpful sample queries and responses. --DD-NU8 >>Record! "LU-1G1" It looks like you're researching the legendary digger of dangerously deep tunnels, unfortunately it seems not even members of the Boring Crew know what became of that one. 01321_ Connecting with Clippyterm... Map ----- +----------------------------------------------------+ | ?????????####### ###????????????????????????? | | ?????????????## ######?????????????????????????? | | ?????????????## ######?????????????????????????? | | ?????????????## ####??????????????????????????? | | ????????????### ####?????????????????????????? | | ??????????##### ###?????????????????????????? | | ???####??##### ##?????????????????????????? | | ??########## ##?????????????????????????? | | ??### ##### ##?????????????????????????? | | ??## #### ###????????????????????????? | | ??### ### ###?#####??????????????????? | | ???### ### #########??##### ?????????? | | ??? ## #### #### ########## ?????????? | | ??? ## #### #### # ????????? | | ?? # ### #### ???????? | | ## ## ### ### ???????? | | # #" ## #### # ???????????? | | # ###O ########???????????? | | # ## ## ### #####?????????????????? | | # #" ####### ### ####?????????????????? | | #####" ##" "##### ###??????????????????? | | ##### ##### ??? ##### ##??????????????????? | | ???### ######?????##### ####?????????????????? | | ???### ####????????#### #####???????????????? | | ???## ###??###??? ## ####???????????????? | | ???### ###???##"??? ## @ ###??????????????? | | ???#######???## # ## ###?????????????? | | ????#####????# ?###R ##### ##?????????????? | | ?????????????????## ####### ###????????????? | | ?????????????????## ####??###" ##????????????? | | ?????????????????## ###???? #"""###????????????? | | ?????????????????"" ?????????"#####????????????? | | ??????????????# "" ?????????#### ?????????????? | | ??????????????## " ????????????????????????????? | | ??????????????### ""????????????????????????????? | | ??????????????#### ""???????????????????????????? | | ???????????????### #"???????????????????????????? | | ????????????????# ##???????????????????????????? | | ?????????????????? ?????????????????????????????? | | ?????????????????? ??????????????????????????????? | | ?????????????????????????????????????????????????? | | ?????????????????????????????????????????????????? | | ?????????????????????????????????????????????????? | | ?????????????????????????????????????????????????? | | ?????????????????????????????????????????????????? | | ?????????????????????????????????????????????????? | | ?????????????????????????????????????????????????? | | ?????????????????????????????????????????????????? | | ?????????????????????????????????????????????????? | | ?????????????????????????????????????????????????? | +----------------------------------------------------+ Best States ------------- Heat Dissipation 25 Energy Generation 10 Energy Capacity 250 Matter Stores 300 Matter Capacity 300 Sight Range 16 Terrain Scan Range 16 Terrain Scan Density 10 ECM Strength 1 Evasion (%) 44 Item Schematics ----------------- None Robot Schematics ------------------ None Fabricated ------------ Nothing Alien Tech Used ----------------- None Achievements -------------- None Challenges ------------ None Game ------ Seed CorruptionCatalystFlamer Manual? 0 Play Time 00:23:31 Cumulative 16.9 hours Start 2024.04.15 @ 22:52:45 End 2024.04.15 @ 23:15:31 Sessions 1 Manual Loads 0 Difficulty Rogue Special Mode None Game No. 15 Rogue 15 Adventurer 0 Explorer 0 Win Type - Total 0 Types 0/0/0/0/0/0/0/0/0 Lore% 2 Gallery% 14 Achievement% 7 Wizard Run 0 Options --------- Layout 1 ASCII 0 Keyboard 0 Movement Mouse Keybinds 0 Fullscreen 1 Font 24/Smallcaps Map View 50x35 Zoom Use 0% Tactical HUD 1 Map Filters NONE Filters NONE Steam 1 RUN: f965e686-60f6-41a4-bd17-b5eac325cebc